bitfinex/quotes_SOLUSD_20250507
["timestamp","ask_amount","ask_price","bid_price","bid_amount"]
[1746609001240,5.04673222,148.06,148.05,20.80803541]
[1746609005761,5.04673222,148.06,148.05,6.75447483]
[1746609005967,5.04673222,148.06,148.05,20.80803541]
[1746609009665,5.04673222,148.06,148.05,34.86159599]
[1746609010461,5.04673222,148.1,148.05,51.74778308]
[1746609010666,5.04673222,148.1,148.08,14.05356058]
[1746609011163,5.04673222,148.09,148.08,20.806667]
[1746609015880,5.04673222,148.09,148.07,14.05356058]
[1746609016048,5.04673222,148.08,148.07,14.05356058]
[1746609018271,5.04673222,148.08,148.07,20.80712308]
[1746609024276,5.04673222,148.08,148.07,6.7535625]
[1746609030086,5.04673222,148.08,148.02,16.88853101]
[1746609030269,5.04673222,148.08,148.04,14.05356058]
[1746609030477,5.04673222,148.08,148.05,14.05356058]
[1746609030978,5.04673222,148.07,148.05,14.05356058]
[1746609031382,5.04673222,148.07,148.05,20.80789446]
[1746609031890,5.04673222,148.06,148.05,20.80789446]
[1746609037496,145.802,148.11,148.05,20.80789446]
[1746609037694,145.802,148.11,148.07,14.05356058]
[1746609037695,159.85556058,148.11,148.07,14.05356058]
[1746609038302,145.802,148.11,148.08,14.05356058]
[1746609038670,145.802,148.11,148.08,20.8063596]
[1746609039483,139.318,148.11,148.08,20.8063596]
[1746609040973,14.05356058,148.09,148.02,42.29510217]
[1746609041174,14.05356058,148.09,148.04,14.05356058]
[1746609041375,139.318,148.11,148.02,23.64545331]
[1746609041376,14.05356058,148.08,148.03,14.05356058]
[1746609041805,14.05356058,148.08,148.02,23.64545331]
[1746609041806,14.05356058,148.08,148.04,14.05356058]
[1746609043600,5.06197293,148.07,148.04,20.80816945]
[1746609044508,5.06197293,148.06,148.04,20.80816945]
[1746609046097,5.06197293,148.05,148.04,20.80816945]
[1746609046402,5.06197293,148.05,148.02,14.05356058]
[1746609046590,5.06197293,148.05,148.01,20.80986082]
[1746609047073,5.06197293,148.04,148.02,14.05356058]
[1746609048003,5.06197293,148.03,148.02,20.80940438]
[1746609048802,5.06197293,148.03,147.98,14.05356058]
[1746609049107,5.06197293,148.03,148.01,14.05356058]
[1746609049607,5.06197293,148.03,147.98,23.65184483]
[1746609049893,5.05952371,148.02,148.0,14.05356058]
[1746609050078,5.05952371,148.02,148.01,6.75630024]
[1746609053404,5.05952371,148.02,147.98,16.89417488]
[1746609053405,5.05952371,148.02,147.98,23.65184483]
[1746609053904,5.05952371,148.02,147.99,14.05356058]
[1746609054402,5.05952371,148.01,147.99,14.05356058]
[1746609055701,5.05952371,148.01,147.99,6.756768]
[1746609055904,5.05952371,148.01,147.99,20.81032858]
[1746609057409,5.05952371,148.0,147.99,20.81032858]
[1746609057706,5.05952371,148.0,147.98,6.75766995]
[1746609057892,5.05952371,148.0,147.99,14.05356058]
[1746609060313,5.05952371,148.0,147.99,20.8107739]
[1746609062118,137.7,148.05,147.99,37.70380721]
[1746609062320,137.7,148.05,148.02,14.05356058]
[1746609062616,151.75356058,148.05,148.01,20.80941333]
[1746609062920,5.04819327,148.04,148.01,20.80941333]
[1746609063426,5.04819327,148.04,148.01,14.05356058]
[1746609063929,5.04819327,148.04,148.01,20.80983856]
[1746609064323,5.04819327,148.03,148.01,20.80983856]
[1746609064622,5.04819327,148.03,148.0,20.81013509]
[1746609064921,5.04819327,148.03,148.0,14.05356058]
[1746609065230,5.04819327,148.02,148.0,20.81030048]
[1746609065732,5.04819327,148.02,147.99,20.81062665]
[1746609066234,5.04819327,148.01,147.99,20.81062665]
[1746609067237,5.04819327,148.0,147.99,20.81062665]
[1746609069646,5.04819327,148.0,147.97,14.05356058]
[1746609070738,25.8586846,148.0,147.94,6.75949709]
[1746609070937,5.04819327,147.99,147.95,14.05356058]
[1746609071846,25.85916817,147.99,147.94,6.75949709]
[1746609072044,19.10175385,147.98,147.94,6.75949709]
[1746609072254,19.10175385,147.98,147.94,20.81305767]
[1746609072551,5.04819327,147.98,147.94,20.81305767]
[1746609072753,5.04819327,147.98,147.94,6.75949709]
[1746609072928,5.04819327,147.98,147.97,14.05356058]
[1746609073834,5.04819327,147.98,147.97,20.81168722]
[1746609075751,14.05356058,148.03,147.97,20.81168722]
[1746609077057,5.04309509,148.02,147.99,20.8105259]
[1746609077751,5.04309509,148.01,147.99,20.8105259]
[1746609078758,5.04309509,148.0,147.99,20.8105259]
[1746609090161,5.04309509,148.0,147.99,39.46017476]
[1746609091075,14.05356058,148.07,147.99,56.35320807]
[1746609091289,14.05356058,148.07,148.02,14.05356058]
[1746609091578,14.05356058,148.07,148.03,14.05356058]
[1746609092378,5.05413063,148.06,148.02,14.05356058]
[1746609093178,5.05413063,148.06,148.03,6.75538742]
[1746609093474,5.05413063,148.05,148.03,6.75538742]
[1746609094686,5.05413063,148.04,148.03,6.75538742]
[1746609095665,5.05413063,148.04,148.03,14.05356058]
[1746609097586,5.05413063,148.04,148.03,20.808948]
[1746609102096,5.05413063,148.04,148.03,6.75538742]
[1746609102292,5.05413063,148.04,148.03,20.808948]
[1746609104095,5.05413063,148.04,148.03,14.05356058]
[1746609109284,5.05413063,148.04,148.03,20.808948]
[1746609110399,5.05413063,148.04,148.03,19.808948]
[1746609113702,5.05413063,148.04,148.03,9.00492674]
[1746609117394,5.05413063,148.04,148.03,15.76031416]
[1746609120781,5.05413063,148.04,148.03,9.00492674]
[1746609121821,5.05413063,148.04,148.02,6.75560461]
[1746609122016,14.05905737,148.04,148.0,6.75675675]
[1746609122197,20.81399052,148.04,148.0,9.00492674]
[1746609122396,9.00492674,148.03,147.99,9.00492674]
[1746609122622,15.76039678,148.03,147.99,9.00492674]
[1746609123004,5.05413063,148.02,147.99,9.00492674]
[1746609123205,5.05413063,148.02,147.99,15.76208773]
[1746609123910,5.05413063,148.02,148.0,9.00492674]
[1746609124421,5.05413063,148.01,148.0,9.00492674]
[1746609125600,5.05413063,148.01,148.0,15.76168349]
[1746609126922,5.05413063,148.01,147.97,23.65323722]
[1746609127126,5.05413063,148.01,148.0,9.00492674]
[1746609129534,5.05413063,148.01,148.0,15.76168349]
[1746609134334,5.05413063,148.01,148.0,6.75675675]
[1746609134531,5.05413063,148.01,148.0,15.76168349]
[1746609135633,5.05413063,148.01,148.0,6.75675675]
[1746609140935,5.05413063,148.01,148.0,15.76168349]
[1746609141340,20.81549517,148.01,147.94,6.75949709]
[1746609141551,9.00492674,148.0,147.96,15.76351014]
[1746609141739,5.05413063,148.01,147.99,9.00492674]
[1746609142420,5.05413063,148.0,147.99,9.00492674]
[1746609144242,5.05413063,148.0,147.99,15.76214006]
[1746609149245,5.05413063,148.0,147.98,15.76239267]
[1746609149832,5.05413063,147.99,147.98,15.76239267]
[1746609151445,5.05413063,147.99,147.98,9.00492674]
[1746609151743,5.05413063,147.99,147.97,15.76283747]
[1746609152142,5.05413063,147.98,147.97,15.76283747]
[1746609156355,5.05413063,147.98,147.97,15.76283747]
[1746609160751,5.06043473,147.98,147.97,15.76283747]
[1746609163276,5.06043473,147.98,147.97,70.43219329]
[1746609163941,27.5143,148.05,147.98,18.64964886]
[1746609164141,27.5143,148.05,148.03,9.00492674]
[1746609165159,5.06231259,148.04,148.03,9.00492674]
[1746609168265,5.06231259,148.04,147.99,23.6497196]
[1746609168468,5.06231259,148.04,148.03,9.00492674]
[1746609171650,5.06231259,148.04,148.03,15.76031416]
[1746609172560,137.7,148.06,148.03,32.64878271]
[1746609172760,1.6022,148.09,148.05,9.00492674]
[1746609172967,1.6022,148.09,148.06,9.00492674]
[1746609173155,27.6022,148.09,148.06,9.00492674]
[1746609174571,1.6022,148.09,148.07,9.00492674]
[1746609174775,6.92679681,148.13,148.06,6.75393321]
[1746609174982,26.0,148.11,148.1,9.00492674]
[1746609175347,6.92679681,148.13,148.09,9.00492674]
[1746609175665,26.0,148.1,148.09,9.00492674]
[1746609176066,15.93172355,148.13,148.09,9.00492674]
[1746609176267,26.0,148.12,148.09,9.00492674]
[1746609176471,15.93172355,148.13,148.09,9.00492674]
[1746609176702,26.0,148.12,148.09,9.00492674]
[1746609177805,26.0,148.12,148.09,14.05952053]
[1746609178006,26.0,148.12,148.08,6.75293757]
[1746609178207,32.75129833,148.12,148.09,14.05952053]
[1746609178372,46.81081886,148.12,148.08,20.8124581]
[1746609178700,26.0,148.12,148.09,14.05952053]
[1746609179098,26.0,148.12,148.09,20.81179262]
[1746609179423,26.0,148.12,148.1,14.05952053]
[1746609180306,26.0,148.12,148.1,20.81167668]
[1746609181399,26.0,148.12,148.1,14.05952053]
[1746609182309,26.0,148.12,148.1,20.81169577]
[1746609182510,174.45001146,148.14,148.1,20.81169577]
[1746609184413,174.45001146,148.14,148.1,14.05952053]
[1746609184713,174.45001146,148.14,148.1,20.81164077]
[1746609185211,174.45001146,148.14,148.1,14.05952053]
[1746609186806,153.64,148.14,148.11,14.05952053]
[1746609187009,137.7,148.14,148.11,14.05952053]
[1746609187188,1.6506,148.17,148.13,14.05952053]
[1746609187503,6.6337,148.19,148.14,14.05952053]
[1746609187696,46.69322053,148.19,148.14,14.05952053]
[1746609187892,14.05952053,148.18,148.1,42.28223925]
[1746609188083,14.05952053,148.18,148.13,14.05952053]
[1746609188697,14.05952053,148.17,148.13,14.05952053]
[1746609189812,20.80859209,148.17,148.13,14.05952053]
[1746609191421,14.05952053,148.16,148.12,20.810632]
[1746609191712,14.05952053,148.16,148.12,14.05952053]
[1746609192831,20.80917007,148.16,148.12,14.05952053]
[1746609193519,14.05952053,148.14,148.1,20.81164374]
[1746609193694,14.05952053,148.14,148.1,14.05952053]
[1746609194518,14.05952053,148.15,148.1,20.8115826]
[1746609196020,6.75037127,148.14,148.11,14.05952053]
[1746609197717,6.75037127,148.14,148.1,20.81171085]
[1746609199324,6.75037127,148.14,148.07,23.63635651]
[1746609199499,6.75037127,148.14,148.1,14.05952053]
[1746609199920,137.7,148.15,148.12,14.05952053]
[1746609200325,137.7,148.15,148.07,23.63635651]
[1746609200326,144.45010418,148.15,148.07,23.63635651]
[1746609200510,144.45010418,148.15,148.12,14.05952053]
[1746609202621,144.45010418,148.15,148.11,20.81122462]
[1746609203617,158.50962471,148.15,148.11,14.05952053]
[1746609203923,158.50962471,148.15,148.1,6.75201779]
[1746609203924,14.05952053,148.14,148.1,20.81153832]
[1746609204327,158.50962471,148.15,148.1,20.81153832]
[1746609206636,14.05952053,148.14,148.1,14.05952053]
[1746609207834,14.05952053,148.14,148.1,20.81163493]
[1746609209107,158.50962471,148.15,148.1,20.81163493]
[1746609210727,14.05952053,148.14,148.1,20.81163493]
[1746609211733,158.50962471,148.15,148.11,14.05952053]
[1746609217365,153.44547061,148.15,148.11,8.99536643]
[1746609224147,8.99536643,148.14,148.07,23.63635651]
[1746609224333,144.45010418,148.15,148.07,23.63635651]
[1746609224531,8.99536643,148.14,148.1,8.99536643]
[1746609224835,146.69536643,148.15,148.11,8.99536643]
[1746609225749,137.7,148.15,148.11,8.99536643]
[1746609226364,137.7,148.15,148.11,15.74686111]
[1746609231854,146.69536643,148.15,148.11,6.75149468]
[1746609233150,146.69536643,148.15,148.11,15.74686111]
[1746609233343,137.7,148.15,148.11,15.74686111]
[1746609233551,146.69536643,148.15,148.11,15.74686111]
[1746609233854,137.7,148.15,148.11,15.74686111]
[1746609236258,146.69536643,148.15,148.11,15.74686111]
[1746609237760,146.69536643,148.15,148.08,16.8818142]
[1746609237961,146.69536643,148.15,148.11,8.99536643]
[1746609240859,153.4452994,148.15,148.11,8.99536643]
[1746609241059,5.06670847,148.14,148.11,15.74709748]
[1746609241454,5.06670847,148.14,148.11,6.75173105]
[1746609241645,14.0620749,148.14,148.09,15.74801684]
[1746609242459,5.06670847,148.13,148.09,15.74801684]
[1746609243766,5.06670847,148.12,148.09,15.74801684]
[1746609244661,5.06670847,148.11,148.09,15.74801684]
[1746609246057,5.06670847,148.1,148.09,6.75265041]
[1746609246262,5.06670847,148.1,148.09,15.74801684]
[1746609252868,5.06670847,148.1,148.07,23.63746876]
[1746609253075,5.06670847,148.1,148.09,8.99536643]
[1746609253387,5.06670847,148.1,148.08,8.99536643]
[1746609254685,5.06670847,148.09,148.08,15.74847285]
[1746609255566,5.06670847,148.09,148.08,6.75310642]
[1746609260213,5.06670847,148.09,148.06,6.75401864]
[1746609260371,5.06670847,148.09,148.07,8.99536643]
[1746609261003,5.06670847,148.08,148.07,8.99536643]
[1746609262791,5.06670847,148.08,148.07,15.74892893]
[1746609263880,5.06670847,148.08,148.07,6.7535625]
[1746609267308,5.06670847,148.08,148.06,6.75401864]
[1746609267699,5.06670847,148.08,148.07,8.99536643]
[1746609268006,8.99536643,148.12,148.07,8.99536643]
[1746609268504,5.062076,148.11,148.07,8.99536643]
[1746609269200,5.062076,148.1,148.07,8.99536643]
[1746609269702,5.062076,148.1,148.08,6.75310642]
[1746609270499,5.062076,148.09,148.08,6.75310642]
[1746609274118,5.062076,148.09,148.06,8.99536643]
[1746609274298,5.062076,148.09,148.05,15.74984126]
[1746609274503,8.99536643,148.07,148.04,6.75484754]
[1746609274693,8.99536643,148.07,148.02,8.99536643]
[1746609274890,5.062076,148.06,148.02,8.99536643]
[1746609275717,5.062076,148.05,148.02,8.99536643]
[1746609275901,5.062076,148.05,148.03,6.75538742]
[1746609276416,5.062076,148.04,148.03,6.75538742]
[1746609278327,5.062076,148.04,148.01,6.75630024]
[1746609278490,5.062076,148.04,148.02,8.99536643]
[1746609278696,172.69536643,148.09,148.03,8.99536643]
[1746609278905,137.7,148.08,148.05,8.99536643]
[1746609279216,137.7,148.08,148.06,8.99536643]
[1746609279419,196.48856643,148.11,148.06,8.99536643]
[1746609280932,8.99536643,148.1,148.07,6.7535625]
[1746609281729,14.06432684,148.1,148.07,6.7535625]
[1746609288855,14.06432684,148.1,148.05,14.06432684]
[1746609289350,194.24499412,148.11,148.05,14.06432684]
[1746609289640,194.24499412,148.11,148.0,23.64864864]
[1746609289641,14.06432684,148.09,148.0,23.64864864]
[1746609289858,14.06432684,148.08,148.04,14.06432684]
[1746609290847,14.06432684,148.09,148.05,14.06432684]
[1746609292348,14.06432684,148.09,148.06,6.75401864]
[1746609297846,14.06432684,148.07,148.03,6.75538742]
[1746609298143,14.06432684,148.07,148.03,20.81971426]
[1746609301043,151.76432684,148.08,148.04,14.06432684]
[1746609301244,137.7,148.08,148.05,20.81860605]
[1746609301444,137.7,148.08,148.05,6.75427921]
[1746609301754,49.7932,148.11,148.06,9.00017847]
[1746609301937,26.0,148.11,148.07,9.00017847]
[1746609302142,153.45170805,148.12,148.07,9.00017847]
[1746609302445,146.70017847,148.12,148.07,9.00017847]
[1746609302647,146.70017847,148.12,148.08,9.00017847]
[1746609303431,146.70017847,148.12,148.08,15.75292376]
[1746609304554,137.7,148.12,148.08,15.75292376]
[1746609304733,146.70017847,148.12,148.08,15.75292376]
[1746609305957,137.7,148.12,148.09,9.00017847]
[1746609308164,137.7,148.12,148.1,6.75219446]
[1746609308658,23.926,148.15,148.1,6.75219446]
[1746609308851,17.562,148.15,148.11,9.00017847]
[1746609309039,10.66217847,148.15,148.11,9.00017847]
[1746609309239,1.662,148.15,148.11,9.00017847]
[1746609309446,10.66217847,148.15,148.11,9.00017847]
[1746609309653,137.7,148.16,148.12,9.00017847]
[1746609310164,35.00017847,148.18,148.15,6.74991562]
[1746609310467,26.0,148.18,148.15,6.74991562]
[1746609310770,35.00017847,148.18,148.15,6.74991562]
[1746609311768,40.04828764,148.18,148.15,6.74991562]
[1746609312763,40.04828764,148.18,148.14,6.75037127]
[1746609313157,14.04828764,148.17,148.14,6.75037127]
[1746609313543,26.0,148.18,148.14,20.79865891]
[1746609313864,40.04828764,148.18,148.14,20.79865891]
[1746609321871,26.0,148.18,148.15,14.04828764]
[1746609322065,5.05659223,148.17,148.15,14.04828764]
[1746609322855,5.05659223,148.17,148.16,14.04828764]
[1746609323249,26.0,148.2,148.16,14.04828764]
[1746609325078,40.04828764,148.2,148.15,14.04828764]
[1746609325261,14.04828764,148.18,148.14,6.75037127]
[1746609325467,14.04828764,148.17,148.14,6.75037127]
[1746609326780,5.06310176,148.16,148.14,6.75037127]
[1746609327168,5.06310176,148.16,148.14,20.79865891]
[1746609328197,14.04828764,148.18,148.14,20.79865891]
[1746609330375,26.0,148.2,148.16,14.04828764]
[1746609330562,26.0,148.2,148.17,14.04828764]
[1746609331260,151.74828764,148.21,148.17,14.04828764]
[1746609331456,137.7,148.21,148.18,14.04828764]
[1746609333393,137.7,148.21,148.19,6.74809366]
[1746609333885,137.7,148.21,148.18,20.79665866]
[1746609334081,5.06184423,148.2,148.18,20.79665866]
[1746609334385,5.06184423,148.2,148.18,14.04828764]
[1746609334680,5.06184423,148.2,148.18,20.79681505]
[1746609335382,137.7,148.21,148.18,20.79681505]
[1746609336281,48.39915182,148.23,148.18,20.79681505]
[1746609336580,14.04828764,148.22,148.18,20.79681505]
[1746609338278,20.79506683,148.22,148.15,25.39956448]
[1746609338486,20.79506683,148.22,148.18,14.04828764]
[1746609338660,6.74677919,148.22,148.18,14.04828764]
[1746609338866,20.79506683,148.22,148.18,14.04828764]
[1746609339092,14.04828764,148.21,148.17,14.04828764]
[1746609339682,6.74677919,148.22,148.18,14.04828764]
[1746609339875,20.79506683,148.22,148.18,14.04828764]
[1746609340489,14.04828764,148.22,148.18,14.04828764]
[1746609340790,8.35098078,148.23,148.19,14.04828764]
[1746609340989,22.39926842,148.23,148.18,14.04828764]
[1746609343893,22.39926842,148.23,148.18,20.79665389]
[1746609345295,14.04828764,148.22,148.18,20.79665389]
[1746609345801,8.98584157,148.22,148.18,15.73420782]
[1746609346098,8.35098078,148.23,148.18,15.73420782]
[1746609346409,8.98584157,148.22,148.18,15.73420782]
[1746609347402,8.98584157,148.23,148.19,8.98584157]
[1746609347604,15.73216873,148.23,148.19,8.98584157]
[1746609348398,8.98584157,148.23,148.19,8.98584157]
[1746609350105,8.98584157,148.23,148.19,15.73385692]
[1746609350905,6.74600435,148.24,148.19,15.73385692]
[1746609351091,8.98584157,148.23,148.19,15.73385692]
[1746609354201,15.73184592,148.24,148.2,8.98584157]
[1746609354501,15.73184592,148.24,148.15,16.87379031]
[1746609354502,137.7,148.25,148.22,8.98584157]
[1746609354683,137.7,148.25,148.21,8.98584157]
[1746609357205,137.7,148.25,148.21,15.73282676]
[1746609358092,137.7,148.25,148.22,8.98584157]
[1746609360016,153.431265,148.25,148.21,8.98584157]
[1746609360418,8.98584157,148.22,148.19,6.74809366]
[1746609364723,8.98584157,148.22,148.17,6.74900452]
[1746609364928,8.98584157,148.22,148.18,8.98584157]
[1746609365225,8.98584157,148.2,148.17,6.74900452]
[1746609366426,8.98584157,148.2,148.16,15.73530161]
[1746609367728,14.04463759,148.2,148.16,20.79409763]
[1746609369233,6.74672783,148.22,148.17,20.79330024]
[1746609369408,14.04463759,148.21,148.17,20.79330024]
[1746609371729,20.79136542,148.22,148.17,20.79330024]
[1746609371906,20.79136542,148.22,148.17,6.74866265]
[1746609371907,14.04463759,148.21,148.17,6.74866265]
[1746609372107,14.04463759,148.21,148.17,20.79330024]
[1746609372724,6.74672783,148.22,148.17,20.79330024]
[1746609372930,14.04463759,148.21,148.17,20.79330024]
[1746609373231,14.04463759,148.19,148.15,6.74991562]
[1746609373728,14.04463759,148.19,148.15,20.79455321]
[1746609375218,20.7927789,148.19,148.15,20.79455321]
[1746609375424,14.04463759,148.18,148.13,14.04463759]
[1746609375603,14.04463759,148.17,148.13,14.04463759]
[1746609376312,14.04463759,148.17,148.13,20.7953564]
[1746609376633,14.04463759,148.15,148.11,20.79616523]
[1746609376849,14.04463759,148.16,148.12,14.04463759]
[1746609378232,20.79418375,148.16,148.12,14.04463759]
[1746609378450,14.04463759,148.15,148.11,20.79616523]
[1746609379521,20.79464249,148.15,148.11,20.79616523]
[1746609380247,6.7500049,148.15,148.11,20.79616523]
[1746609380413,20.79427631,148.16,148.12,14.04463759]
[1746609383417,14.04463759,148.15,148.11,14.04463759]
[1746609384432,20.79466327,148.15,148.11,14.04463759]
[1746609385843,14.04463759,148.14,148.1,14.04463759]
[1746609386149,14.04463759,148.13,148.09,14.04463759]
[1746609386337,14.04463759,148.12,148.08,20.7975733]
[1746609387342,20.79595152,148.12,148.08,20.7975733]
[1746609387644,20.79595152,148.12,148.08,14.04463759]
[1746609390641,14.04463759,148.12,148.08,20.79763825]
[1746609393246,20.79594316,148.12,148.08,20.79763825]
[1746609394548,20.79594316,148.12,148.07,6.7535625]
[1746609394738,20.79594316,148.12,148.08,14.04463759]
[1746609395328,14.04463759,148.11,148.05,6.75447483]
[1746609395543,14.04463759,148.11,148.06,14.04463759]
[1746609395934,14.04463759,148.1,148.06,14.04463759]
[1746609396326,14.04463759,148.1,148.05,20.79911242]
[1746609396821,20.7970808,148.1,148.05,6.75447483]
[1746609397053,14.04463759,148.09,148.05,20.79911242]
[1746609397547,14.04463759,148.09,148.05,6.75447483]
[1746609398051,20.79745081,148.09,148.05,6.75447483]
[1746609400153,14.04463759,148.09,148.05,6.75447483]
[1746609401844,14.04463759,148.06,148.0,6.75675675]
[1746609402029,14.04463759,148.06,148.02,14.04463759]
[1746609402233,14.04463759,148.06,148.01,6.75595868]
[1746609402234,20.79861809,148.07,148.03,14.04463759]
[1746609402436,14.04463759,148.07,148.03,14.04463759]
[1746609403449,163.7,148.08,148.05,14.04463759]
[1746609403747,137.7,148.08,148.06,14.04463759]
[1746609404846,137.7,148.08,148.06,6.75401864]
[1746609406034,137.7,148.08,148.05,6.75431316]
[1746609406235,151.74463759,148.08,148.05,6.75431316]
[1746609407253,151.74463759,148.08,148.03,14.04463759]
[1746609409655,151.74463759,148.08,148.04,6.75493109]
[1746609409867,14.04463759,148.07,148.04,6.75493109]
[1746609410153,14.04463759,148.06,148.03,6.75530012]
[1746609410861,14.04463759,148.05,148.01,14.04463759]
[1746609411065,14.04463759,148.04,148.0,14.04463759]
[1746609411235,14.04463759,148.05,148.0,14.04463759]
[1746609411433,14.04463759,148.05,148.01,14.04463759]
[1746609412040,14.04463759,148.05,148.02,6.7558438]
[1746609413969,14.04463759,148.05,148.0,6.75675675]
[1746609414171,14.04463759,148.05,148.0,20.80139434]
[1746609415463,14.04463759,148.04,148.0,20.80139434]
[1746609417237,14.04463759,148.03,148.0,6.75675675]
[1746609419771,14.04463759,148.03,147.99,20.80164121]
[1746609420060,14.04463759,148.02,147.99,6.75700362]
[1746609424170,14.04463759,148.01,147.99,6.75700362]
[1746609425367,14.04463759,148.01,147.98,6.75766995]
[1746609425747,14.04463759,148.02,147.98,20.80230754]
[1746609426465,14.04463759,148.02,147.98,6.75766995]
[1746609426661,14.04463759,148.01,147.98,6.75766995]
[1746609427771,9.0104253,148.01,147.97,9.0104253]
[1746609428558,9.0104253,148.01,147.96,23.65488435]
[1746609428744,9.0104253,148.01,147.96,15.7690087]
[1746609429150,9.0104253,148.0,147.96,15.7690087]
[1746609429871,14.08131124,148.0,147.96,6.7585834]
[1746609430072,14.08131124,148.0,147.96,20.83989464]
[1746609430468,14.08131124,148.0,147.96,6.7585834]
[1746609430668,14.08131124,147.99,147.96,6.7585834]
[1746609430851,26.0,148.02,147.96,6.7585834]
[1746609430852,14.08131124,147.98,147.96,6.7585834]
[1746609431574,14.08131124,147.98,147.94,6.75949709]
[1746609431758,14.08131124,147.97,147.94,6.75949709]
[1746609436778,14.08131124,147.98,147.94,6.75949709]
[1746609436958,14.08131124,147.98,147.94,20.84080833]
[1746609437372,14.08131124,147.97,147.94,6.75949709]
[1746609437579,14.08131124,147.96,147.94,6.75949709]
[1746609438278,170.45728231,147.99,147.94,6.75949709]
[1746609438488,14.08131124,147.96,147.93,6.75995403]
[1746609438986,14.08131124,147.94,147.93,6.75995403]
[1746609439158,14.08131124,147.94,147.87,26.85085432]
[1746609439159,14.08131124,147.94,147.91,6.76051435]
[1746609439483,14.08131124,147.93,147.9,6.76121123]
[1746609439665,14.08131124,147.92,147.9,6.76121123]
[1746609439863,14.08131124,147.91,147.88,6.76223965]
[1746609440169,171.2856,147.96,147.86,6.76315433]
[1746609440170,14.08131124,147.89,147.86,6.76315433]
[1746609440383,26.0,147.93,147.86,6.76315433]
[1746609440384,137.7,147.92,147.88,14.08131124]
[1746609440571,151.78131124,147.92,147.89,6.7617824]
[1746609441059,137.7,147.92,147.89,6.7617824]
[1746609441569,14.08131124,147.91,147.89,6.7617824]
[1746609442487,26.0,147.93,147.88,20.84355089]
[1746609442672,14.08131124,147.93,147.89,14.08131124]
[1746609443056,14.08131124,147.94,147.88,23.66783878]
[1746609443261,14.08131124,147.93,147.89,14.08131124]
[1746609443684,14.08131124,147.92,147.88,37.74915002]
[1746609443870,14.08131124,147.93,147.89,14.08131124]
[1746609444191,171.2856,147.96,147.89,14.08131124]
[1746609444364,14.08131124,147.93,147.89,14.08131124]
[1746609444566,14.08131124,147.94,147.9,14.08131124]
[1746609444877,14.08131124,147.92,147.88,16.90559913]
[1746609445184,178.0443942,147.96,147.87,20.8440082]
[1746609445185,14.08131124,147.91,147.87,20.8440082]
[1746609445967,137.7,147.95,147.87,20.8440082]
[1746609446167,14.08131124,147.91,147.87,37.7507506]
[1746609446558,14.08131124,147.91,147.88,14.08131124]
[1746609446763,14.08131124,147.92,147.89,6.7617824]
[1746609447379,14.08131124,147.92,147.88,6.76205846]
[1746609447592,14.08131124,147.9,147.88,6.76205846]
[1746609448295,14.08131124,147.9,147.87,6.76250691]
[1746609448484,14.08131124,147.89,147.85,14.08131124]
[1746609448672,14.08131124,147.87,147.83,20.84583806]
[1746609451090,14.08131124,147.86,147.82,16.91236169]
[1746609451314,14.08131124,147.88,147.84,14.08131124]
[1746609452712,151.78131124,147.9,147.86,14.08131124]
[1746609453425,137.7,147.9,147.85,6.76361176]
[1746609453719,144.46134161,147.9,147.85,6.76361176]
[1746609453895,14.08131124,147.88,147.85,6.76361176]
[1746609454586,137.7,147.9,147.85,6.76361176]
[1746609454789,14.08131124,147.88,147.85,6.76361176]
[1746609456120,137.7,147.9,147.85,6.76361176]
[1746609456412,14.08131124,147.88,147.85,6.76361176]
[1746609456611,137.7,147.9,147.86,14.08131124]
[1746609456814,151.78131124,147.9,147.86,14.08131124]
[1746609458020,14.08131124,147.9,147.82,18.64964886]
[1746609458324,14.08131124,147.91,147.87,14.08131124]
[1746609458709,14.08131124,147.91,147.88,6.76223965]
[1746609459107,26.0,147.92,147.88,6.76223965]
[1746609459329,14.08131124,147.91,147.88,6.76223965]
[1746609459501,14.08131124,147.9,147.87,6.76250815]
[1746609460021,26.0,147.92,147.87,6.76250815]
[1746609460318,14.08131124,147.92,147.88,14.08131124]
[1746609461128,14.08131124,147.92,147.86,23.67099744]
[1746609461326,14.08131124,147.92,147.88,14.08131124]
[1746609461717,14.08131124,147.91,147.87,14.08131124]
[1746609462239,14.08131124,147.92,147.87,14.08131124]
[1746609462828,153.54,147.93,147.87,14.08131124]
[1746609463041,153.54,147.93,147.88,14.08131124]
[1746609463213,14.08131124,147.92,147.89,6.7617824]
[1746609464820,5.07689938,147.91,147.89,6.7617824]
[1746609465630,5.07689938,147.91,147.88,14.08131124]
[1746609466039,5.07689938,147.9,147.87,14.08131124]
[1746609466841,5.07689938,147.89,147.87,14.08131124]
[1746609467841,5.07689938,147.88,147.87,20.8440082]
[1746609468553,144.158,148.0,147.88,18.64964886]
[1746609468717,14.08131124,147.97,147.93,14.08131124]
[1746609469117,14.08131124,147.94,147.88,18.64964886]
[1746609469415,14.08131124,147.93,147.87,89.65552417]